fUST/lending_fUST_20240206
["ID","MTS","AMOUNT","RATE_DAILY","PERIOD"]
[313332030,1707162641380,-500.0,0.00024931,2]
[313332031,1707162641389,-500.0,0.00024931,2]
[313332032,1707162641398,-500.0,0.00024931,2]
[313332033,1707162641408,-500.0,0.00024931,2]
[313332034,1707162641417,-500.0,0.00024931,2]
[313332035,1707162641426,-500.0,0.00024931,2]
[313332036,1707162641435,-500.0,0.00024931,2]
[313332037,1707162641445,-235.364499,0.00024931,2]
[313332038,1707162641455,-235.364499,0.00024931,2]
[313332039,1707162641469,-656.36,0.00024931,2]
[313332040,1707162641479,-235.364499,0.00024931,2]
[313332041,1707162641489,-235.364499,0.00024931,2]
[313332042,1707162641498,-373.70565358,0.00024931,2]
[313332043,1707162641508,-500.0,0.00024931,2]
[313332044,1707162641517,-506.61538217,0.00024931,2]
[313332045,1707162641526,-800.33,0.00024931,2]
[313332046,1707162641535,-500.0,0.00024931,2]
[313332047,1707162641544,-1031.43,0.00024931,2]
[313332048,1707162641554,-500.0,0.00024931,2]
[313332049,1707162641563,-5069.41,0.00024931,2]
[313332050,1707162641573,-1828.06,0.00024931,2]
[313332051,1707162641582,-299.27,0.00024931,2]
[313332052,1707162641591,-500.0,0.00024931,2]
[313332054,1707162641600,-500.0,0.00024931,2]
[313332055,1707162641609,-485.06,0.00024931,2]
[313332056,1707162641618,-1932.09317,0.00024931,2]
[313332057,1707162641628,-1932.09317,0.00024931,2]
[313332058,1707162641637,-1932.09317,0.00024931,2]
[313332059,1707162641646,-1932.09317,0.00024931,2]
[313332060,1707162641655,-1039.64,0.00024931,2]
[313332061,1707162641665,-572.1,0.00024931,2]
[313332062,1707162641674,-500.0,0.00024931,2]
[313332063,1707162641683,-1461.01,0.00024931,2]
[313332064,1707162641692,-500.0,0.00024931,2]
[313332065,1707162641701,-648.69906751,0.00024931,2]
[313332067,1707162641711,-504.68330874,0.00024931,2]
[313332068,1707162641719,-151.0,0.00024931,2]
[313332070,1707162641729,-151.0,0.00024931,2]
[313332072,1707162641738,-4123.36,0.00024931,2]
[313332073,1707162641747,-3108.98976991,0.00024966,2]
[313332074,1707162641756,-371.11324384,0.00024966,2]
[313332076,1707162641765,-151.0,0.00024966,2]
[313332077,1707162641774,-287.482269,0.00024966,2]
[313332079,1707162641783,-160.177651,0.00024966,2]
[313332080,1707162641792,-151.0,0.00024967,2]
[313332081,1707162641801,-3022.81629331,0.00024967,2]
[313332082,1707162641810,-278.16597532,0.00024997,2]
[313332083,1707162641819,-232.26717277,0.00024998,2]
[313332084,1707162641828,-195.07445412,0.00024999,2]
[313332085,1707162641837,-155.12441255,0.00024999,2]
[313332086,1707162641845,-159.05011875,0.00024999,2]
[313332087,1707162641854,-204.85251051,0.00024999,2]
[313332088,1707162641863,-156.13731761,0.00024999,2]
[313332089,1707162641872,-208.71743978,0.00024999,2]
[313332090,1707162641881,-1099.05055987,0.00024999,2]
[313332091,1707162641889,-151.0,0.00024999,2]
[313332092,1707162641898,-1932.09317,0.00024999,2]
[313332093,1707162641907,-1932.09317,0.00024999,2]
[313332094,1707162641916,-314.0615053,0.00025,2]
[313332095,1707162641925,-168.88418216,0.00025,2]
[313332096,1707162641934,-310.01860161,0.00025,2]
[313332097,1707162641943,-2086.73700022,0.00025,2]
[313332098,1707162641952,-1830.70871665,0.00025,2]
[313332099,1707162641960,-3252.21461977,0.00025,2]
[313332100,1707162641969,-212.09151868,0.00025,2]
[313332101,1707162641979,-235.01682964,0.00025,2]
[313332102,1707162641988,-155.02015262,0.00025,2]
[313332103,1707162641998,-534.69538579,0.00025,2]
[313332104,1707162642007,-49140.43600084,0.00025,2]
[313332105,1707162642016,-4735.97820111,0.00025,2]
[313332106,1707162642025,-389.43200911,0.00025,6]
[313332107,1707162642034,-226.96975,0.00025,2]
[313332108,1707162642043,-151.0,0.00025,2]
[313332109,1707162642052,-1009.83801582,0.00025,2]
[313332110,1707162642061,-756.766733,0.00025,2]
[313332111,1707162642070,-756.766733,0.00025,2]
[313332112,1707162642079,-756.766733,0.00025,2]
[313332113,1707162642088,-756.766733,0.00025,2]
[313332114,1707162642097,-235.364499,0.00025,2]
[313332115,1707162642105,-235.364499,0.00025,2]
[313332116,1707162642114,-235.364499,0.00025,2]
[313332117,1707162642123,-235.364499,0.00025,2]
[313332118,1707162642132,-1932.09317,0.00025,2]
[313332119,1707162642140,-1932.09317,0.00025,2]
[313332120,1707162642149,-151.0,0.00025,2]
[313332121,1707162642158,-500.0,0.00025169,2]
[313332122,1707162642168,-322.94935679,0.00025169,2]
[313332123,1707162642176,-500.0,0.00025169,2]
[313332124,1707162642185,-500.0,0.00025169,2]
[313332125,1707162642195,-500.0,0.00025169,2]
[313332126,1707162642204,-500.0,0.00025169,2]
[313332127,1707162642214,-223.64962865,0.00025169,2]
[313332128,1707162642223,-313.36056413,0.00025169,2]
[313332129,1707162642232,-358.75355962,0.00025169,2]
[313332130,1707162642241,-500.0,0.00025169,2]
[313332131,1707162642250,-500.0,0.00025169,2]
[313332132,1707162642259,-500.0,0.00025169,2]
[313332133,1707162642268,-500.0,0.00025169,2]
[313332134,1707162642277,-480.0,0.00025169,2]
[313332135,1707162642286,-500.0,0.00025169,2]
[313332136,1707162642295,-500.0,0.00025169,2]
[313332137,1707162642304,-500.0,0.00025169,2]
[313332138,1707162642314,-500.0,0.00025169,2]
[313332139,1707162642324,-500.0,0.00025169,2]
[313332140,1707162642333,-500.0,0.00025169,2]
[313332141,1707162642343,-260.90504223,0.00025169,2]
[313332142,1707162642352,-500.0,0.00025169,2]
[313332143,1707162642362,-500.0,0.00025169,2]
[313332144,1707162642372,-500.0,0.00025169,2]
[313332145,1707162642382,-500.0,0.00025169,2]
[313332146,1707162642391,-500.0,0.00025169,2]
[313332147,1707162642401,-500.0,0.00025169,2]
[313332148,1707162642410,-458.25468705,0.00025169,2]
[313332149,1707162642420,-500.0,0.00025169,2]
[313332150,1707162642430,-500.0,0.00025169,2]
[313332151,1707162642439,-500.0,0.00025169,2]
[313332152,1707162642449,-500.0,0.00025169,2]
[313332153,1707162642462,-500.0,0.00025169,2]
[313332154,1707162642471,-339.99109288,0.00025169,2]
[313332155,1707162642481,-500.0,0.00025169,2]
[313332156,1707162642490,-554.724004,0.00025169,2]
[313332157,1707162642501,-500.0,0.00025169,2]
[313332158,1707162642510,-500.0,0.00025169,2]
[313332159,1707162642519,-756.766733,0.00025169,2]
[313332160,1707162642529,-756.766733,0.00025169,2]
[313332161,1707162642539,-235.364499,0.00025169,2]
[313332162,1707162642549,-235.364499,0.00025169,2]
[313332163,1707162642558,-165.48931487,0.00025169,2]
[313332164,1707162642568,-1932.09317,0.00025169,2]
[313332165,1707162642577,-1932.093166,0.00025169,2]
[313332166,1707162642586,-151.0,0.00025169,2]
[313332167,1707162642595,-261877.22401357,0.0002517,2]
[313332168,1707162642604,-6369.13718193,0.0002517,2]
[313332169,1707162642614,-500.0,0.000252,2]
[313332170,1707162642623,-171.717261,0.000252,3]
[313332171,1707162642633,-171.717261,0.000252,3]
[313332172,1707162642642,-283.46585715,0.00025203,2]
[313332173,1707162642651,-505.01286985,0.00025203,2]
[313332174,1707162642660,-500.0,0.00025203,2]
[313332175,1707162642670,-500.0,0.00025203,2]
[313332176,1707162642679,-500.0,0.00025203,2]
[313332177,1707162642688,-500.0,0.00025203,2]
[313332178,1707162642698,-500.0,0.00025203,2]
[313332179,1707162642707,-500.0,0.00025203,2]
[313332180,1707162642716,-500.0,0.00025203,2]
[313332181,1707162642726,-500.0,0.00025203,2]
[313332182,1707162642735,-500.0,0.00025203,2]
[313332183,1707162642820,-537.66381082,0.00025203,2]
[313332184,1707162642829,-500.0,0.00025203,2]
[313332185,1707162642839,-155.01860223,0.00025205,2]
[313332186,1707162642848,-765.76707638,0.00025205,2]
[313332187,1707162642857,-500.0,0.00025205,2]
[313332188,1707162642866,-500.0,0.00025205,2]
[313332189,1707162642875,-290.44,0.00025205,2]
[313332190,1707162642884,-241.99853175,0.00025205,2]
[313332191,1707162642893,-500.0,0.00025205,2]
[313332192,1707162642903,-500.0,0.00025205,2]
[313332193,1707162642912,-500.0,0.00025205,2]
[313332194,1707162642921,-500.0,0.00025205,2]
[313332195,1707162642930,-192.17,0.00025205,2]
[313332196,1707162642939,-656.36,0.00025205,2]
[313332197,1707162642948,-500.0,0.00025205,2]
[313332198,1707162642957,-800.33,0.00025205,2]
[313332199,1707162642966,-500.0,0.00025205,2]
[313332200,1707162642976,-1031.43,0.00025205,2]
[313332201,1707162642985,-155.08,0.00025205,2]
[313332202,1707162642994,-5069.41,0.00025205,2]
[313332203,1707162643003,-1828.06,0.00025205,2]
[313332204,1707162643012,-500.0,0.00025205,2]
[313332205,1707162643021,-500.0,0.00025205,2]
[313332206,1707162643031,-1039.64,0.00025205,2]
[313332207,1707162643040,-572.1,0.00025205,2]
[313332208,1707162643049,-1461.01,0.00025205,2]
[313332209,1707162643058,-500.0,0.00025205,2]
[313332210,1707162643067,-4123.36,0.00025205,2]
[313332211,1707162643076,-4020.32440334,0.00025316,2]
[313332212,1707162643086,-5598.40634948,0.00025317,2]
[313332213,1707162643095,-165.88813996,0.00025477,2]
[313332214,1707162643104,-245.29948092,0.00025477,2]
[313332215,1707162643113,-904.83318342,0.00025477,2]
[313332216,1707162643122,-1295.2641633,0.00025477,2]
[313332217,1707162643131,-500.0,0.00025477,2]
[313332218,1707162643139,-282.42,0.00025477,2]
[313332219,1707162643148,-500.0,0.00025477,2]
[313332220,1707162643158,-596.95,0.00025477,2]
[313332221,1707162643167,-500.0,0.00025477,2]
[313332222,1707162643176,-500.0,0.00025479,2]
[313332223,1707162643185,-352.86602118,0.00025479,2]
[313332224,1707162643194,-500.0,0.00025479,2]
[313332225,1707162643203,-656.36,0.00025479,2]
[313332226,1707162643212,-800.33,0.00025479,2]
[313332227,1707162643221,-1031.43,0.00025479,2]
[313332228,1707162643231,-5069.41,0.00025479,2]
[313332229,1707162643240,-1828.06,0.00025479,2]
[313332230,1707162643250,-1039.64,0.00025479,2]
[313332231,1707162643259,-572.1,0.00025479,2]
[313332232,1707162643268,-1461.01,0.00025479,2]
[313332234,1707162643278,-500.0,0.00025479,2]
[313332235,1707162643286,-4123.36,0.00025479,2]
[313332236,1707162643296,-151.0,0.00025561,2]
[313332237,1707162643305,-3629.51705113,0.00025635,2]
[313332238,1707162643314,-628.41416648,0.00025735,2]
[313332239,1707162643323,-3317.77219557,0.00025735,2]
[313332241,1707162643333,-16382.48692134,0.00025736,2]
[313332242,1707162643342,-5000.0,0.00025737,2]
[313332243,1707162643352,-609.18883985,0.0002575,2]
[313332244,1707162643361,-384.64697665,0.0002575,2]
[313332245,1707162643370,-11784.65894568,0.0002575,2]
[313332246,1707162643379,-9959.98060866,0.0002575,2]
[313332248,1707162643388,-330.23570657,0.00025751,2]
[313332250,1707162643398,-5219.85027609,0.00025751,2]
[313332252,1707162643407,-500.0,0.00025751,2]
[313332253,1707162643416,-500.0,0.00025753,2]
[313332254,1707162643426,-656.36,0.00025753,2]
[313332255,1707162643434,-800.33,0.00025753,2]
[313332256,1707162643444,-1031.43,0.00025753,2]
[313332257,1707162643453,-5069.41,0.00025753,2]
[313332258,1707162643465,-1828.06,0.00025753,2]
[313332259,1707162643474,-1039.64,0.00025753,2]
[313332260,1707162643483,-572.1,0.00025753,2]
[313332261,1707162643493,-1461.01,0.00025753,2]
[313332263,1707162643502,-500.0,0.00025753,2]
[313332264,1707162643511,-522.02835362,0.00026024,2]
[313332265,1707162643521,-290.78281521,0.00026025,2]
[313332266,1707162643530,-200.0,0.00026025,2]
[313332267,1707162643540,-1371.6525622,0.00026026,2]
[313332268,1707162643550,-157.74764102,0.00026026,2]
[313332269,1707162643560,-500.0,0.00026027,2]
[313332270,1707162643569,-656.36,0.00026027,2]
[313332271,1707162643579,-800.33,0.00026027,2]
[313332272,1707162643587,-1031.43,0.00026027,2]
[313332273,1707162643597,-5069.41,0.00026027,2]
[313332274,1707162643606,-1828.06,0.00026027,2]
[313332276,1707162643615,-1039.64,0.00026027,2]
[313332278,1707162643625,-572.1,0.00026027,2]
[313332280,1707162643634,-1461.01,0.00026027,2]
[313332282,1707162643643,-500.0,0.00026027,2]
[313332284,1707162643652,-306.4634771,0.00026027,2]
[313332285,1707162643662,-306.0,0.00026027,2]
[313332287,1707162643671,-307.3855345,0.00026027,2]
[313332288,1707162643681,-420.4280906,0.00026027,2]
[313332289,1707162643689,-207.7973928,0.00026027,2]
[313332290,1707162643698,-199.8298339,0.00026027,2]
[313332291,1707162643707,-199.8298339,0.00026027,2]
[313332292,1707162643716,-153.0,0.00026027,2]
[313332293,1707162643725,-153.0,0.00026027,2]
[313332294,1707162643734,-199.8298339,0.00026027,2]
[313332295,1707162643743,-165.7765985,0.00026027,2]
[313332296,1707162643752,-500.0,0.000262,2]
[313332297,1707162643761,-971.0,0.000262,2]
[313332298,1707162643770,-454.49289102,0.00026293,2]
[313332299,1707162643779,-156.56853962,0.00026293,2]
[313332300,1707162643788,-297.37206321,0.00026294,2]
[313332301,1707162643797,-3752.87220782,0.00026295,2]
[313332302,1707162643806,-213.63828933,0.00026296,2]
[313332303,1707162643815,-1203.58160915,0.00026297,2]
[313332304,1707162643824,-1069.57106338,0.00026297,2]
[313332305,1707162643834,-157.57021362,0.00026297,2]
[313332306,1707162643843,-292.72601981,0.00026298,2]
[313332307,1707162643853,-1191.4759341,0.00026298,2]
[313332308,1707162643862,-2282.48977409,0.00026299,2]
[313332309,1707162643871,-1512.16074094,0.00026299,2]
[313332310,1707162643881,-500.0,0.00026301,2]
[313332311,1707162643891,-656.36,0.00026301,2]
[313332312,1707162643900,-800.33,0.00026301,2]
[313332313,1707162643909,-1031.43,0.00026301,2]
[313332314,1707162643918,-5069.41,0.00026301,2]
[313332315,1707162643928,-1828.06,0.00026301,2]
[313332316,1707162643936,-1039.64,0.00026301,2]
[313332317,1707162643946,-572.1,0.00026301,2]
[313332318,1707162643955,-1461.01,0.00026301,2]
[313332319,1707162643964,-500.0,0.00026301,2]
[313332320,1707162643973,-332.1371054,0.00026336,3]
[313332321,1707162643983,-151.0,0.00026466,2]
[313332322,1707162643992,-505.0,0.000265,2]
[313332323,1707162644001,-500.0,0.00026575,2]
[313332324,1707162644010,-656.36,0.00026575,2]
[313332325,1707162644022,-800.33,0.00026575,2]
[313332326,1707162644031,-1031.43,0.00026575,2]
[313332327,1707162644040,-5069.41,0.00026575,2]
[313332328,1707162644049,-1828.06,0.00026575,2]
[313332329,1707162644058,-1039.64,0.00026575,2]
[313332330,1707162644066,-572.1,0.00026575,2]
[313332331,1707162644075,-1461.01,0.00026575,2]
[313332332,1707162644085,-500.0,0.00026575,2]
[313332333,1707162644094,-500.0,0.00026849,2]
[313332334,1707162644103,-656.36,0.00026849,2]
[313332335,1707162644112,-800.33,0.00026849,2]
[313332336,1707162644121,-1031.43,0.00026849,2]
[313332337,1707162644130,-5069.41,0.00026849,2]
[313332338,1707162644139,-1828.06,0.00026849,2]
[313332339,1707162644148,-1039.64,0.00026849,2]
[313332340,1707162644157,-572.1,0.00026849,2]
[313332341,1707162644166,-1461.01,0.00026849,2]
[313332342,1707162644175,-500.0,0.00026849,2]
[313332343,1707162644184,-391.0,0.00026897,15]
[313332344,1707162644193,-155.02480397,0.00027,2]
[313332345,1707162644202,-82226.22079284,0.00027,2]
[313332346,1707162644211,-1382.16421912,0.00027,2]
[313332347,1707162644220,-5000.0,0.00027043,2]
[313332348,1707162644230,-154.98112192,0.00027049,2]
[313332349,1707162644239,-683.44618662,0.00027098,2]
[313332350,1707162644248,-177.42242095,0.00027098,2]
[313332351,1707162644257,-323.29914868,0.00027098,2]
[313332352,1707162644266,-155.70389166,0.00027098,2]
[313332353,1707162644275,-804.59286664,0.00027098,2]
[313332354,1707162644284,-155.41808981,0.00027098,2]
[313332355,1707162644292,-178.04811419,0.00027099,2]
[313332356,1707162644301,-48933.02600869,0.000271,2]
[313332357,1707162644310,-500.0,0.00027123,2]
[313332358,1707162644319,-656.36,0.00027123,2]
[313332359,1707162644328,-800.33,0.00027123,2]
[313332360,1707162644337,-1031.43,0.00027123,2]
[313332361,1707162644347,-5069.41,0.00027123,2]
[313332362,1707162644356,-1828.06,0.00027123,2]
[313332363,1707162644365,-1039.64,0.00027123,2]
[313332364,1707162644374,-572.1,0.00027123,2]
[313332365,1707162644383,-1461.01,0.00027123,2]
[313332366,1707162644392,-500.0,0.00027123,2]
[313332367,1707162644401,-500.0,0.000272,2]
[313332368,1707162644411,-151.0,0.00027371,2]
[313332369,1707162644420,-500.0,0.00027397,2]
[313332370,1707162644429,-500.0,0.00027397,2]
[313332371,1707162644439,-182.60915985,0.00027397,2]
[313332372,1707162644448,-155.0,0.00027397,2]
[313332373,1707162644458,-500.0,0.00027397,2]
[313332374,1707162644472,-656.36,0.00027397,2]
[313332375,1707162644481,-800.33,0.00027397,2]
[313332376,1707162644490,-1031.43,0.00027397,2]
[313332377,1707162644499,-5069.41,0.00027397,2]
[313332378,1707162644509,-1828.06,0.00027397,2]
[313332379,1707162644518,-500.0,0.00027397,2]
[313332380,1707162644527,-1000.0,0.00027397,2]
[313332381,1707162644537,-1000.0,0.00027397,2]
[313332382,1707162644547,-1000.0,0.00027397,2]
[313332383,1707162644557,-1110.45907752,0.00027397,2]
[313332384,1707162644566,-1039.64,0.00027397,2]
[313332385,1707162644575,-572.1,0.00027397,2]
[313332386,1707162644584,-1461.01,0.00027397,2]
[313332387,1707162644593,-540.1,0.00027397,2]
[313332388,1707162644602,-168.398982,0.00027412,2]
[313332389,1707162644611,-857.587388,0.00027412,2]
[313332390,1707162644621,-408.150471,0.00027412,2]
[313332391,1707162644630,-171.140725,0.00027412,2]
[313332392,1707162644639,-182.90301,0.00027412,2]
[313332393,1707162644649,-159.383766,0.00027412,2]
[313332394,1707162644658,-164.824561,0.00027412,2]
[313332395,1707162644668,-188.582568,0.00027412,2]
[313332396,1707162644676,-187.459184,0.00027412,2]
[313332397,1707162644686,-164.668775,0.00027412,2]
[313332398,1707162644694,-187.459184,0.00027412,2]
[313332399,1707162644703,-188.582568,0.00027412,2]
[313332400,1707162644712,-150.1,0.00027435,2]
[313332401,1707162644722,-563.99655197,0.000275,2]
[313332402,1707162644732,-1012.27629002,0.000275,2]
[313332403,1707162644741,-355.22775851,0.000275,2]
[313332404,1707162644750,-1129.72846753,0.000275,2]
[313332405,1707162644830,-600.0,0.000275,2]
[313332406,1707162644840,-500.00000001,0.000275,2]
[313332407,1707162644849,-2000.0,0.000275,2]
[313332408,1707162644858,-2000.0,0.0002751,2]
[313332409,1707162644868,-2000.0,0.0002752,2]
[313332410,1707162644877,-182.90301,0.00027523,2]
[313332411,1707162644886,-171.140725,0.00027523,2]
[313332412,1707162644895,-210.732726,0.00027523,2]
[313332413,1707162644904,-190.211787,0.00027523,2]
[313332414,1707162644913,-2000.0,0.0002753,2]
[313332415,1707162644922,-500.0,0.00027534,2]
[313332416,1707162644931,-2000.0,0.0002754,2]
[313332417,1707162644940,-2000.0,0.0002755,2]
[313332418,1707162644950,-2000.0,0.0002756,2]
[313332419,1707162644959,-2000.0,0.0002757,2]
[313332420,1707162644967,-2000.0,0.0002758,2]
[313332421,1707162644977,-256.679907,0.00027589,2]
[313332422,1707162644986,-199.867504,0.00027589,2]
[313332423,1707162644995,-182.765365,0.00027589,2]
[313332424,1707162645004,-171.001181,0.00027589,2]
[313332425,1707162645013,-2000.0,0.0002759,2]
[313332426,1707162645023,-2000.0,0.000276,2]
[313332427,1707162645032,-2000.0,0.0002761,2]
[313332428,1707162645041,-2000.0,0.0002762,2]
[313332429,1707162645050,-2000.0,0.0002763,2]
[313332430,1707162645059,-2000.0,0.0002764,2]
[313332431,1707162645068,-2000.0,0.0002765,2]
[313332432,1707162645077,-2000.0,0.0002766,2]
[313332433,1707162645086,-2000.0,0.0002767,2]
[313332434,1707162645095,-434.03538433,0.00027671,2]
[313332435,1707162645104,-656.36,0.00027671,2]
[313332436,1707162645114,-800.33,0.00027671,2]
[313332437,1707162645122,-1031.43,0.00027671,2]
[313332438,1707162645132,-5069.41,0.00027671,2]
[313332439,1707162645141,-1828.06,0.00027671,2]
[313332440,1707162645150,-500.0,0.00027671,2]
[313332441,1707162645159,-1039.64,0.00027671,2]
[313332442,1707162645168,-572.1,0.00027671,2]
[313332443,1707162645177,-1461.01,0.00027671,2]
[313332444,1707162645186,-2589.806619,0.0002768,2]
[313332445,1707162645195,-857.587388,0.00027755,2]
[313332446,1707162645204,-408.150471,0.00027755,2]
[313332447,1707162645213,-171.140725,0.00027755,2]
[313332448,1707162645223,-513.422175,0.00027782,2]
[313332449,1707162645234,-329.225417,0.00027782,2]
[313332450,1707162645243,-655.15173131,0.000278,2]
[313332451,1707162645252,-500.0,0.00027808,2]
[313332452,1707162645261,-7278.93832472,0.00027855,2]
[313332453,1707162645270,-171.140725,0.00027867,2]
[313332454,1707162645280,-1506.33336028,0.000279,2]
[313332455,1707162645289,-256.679907,0.00027934,2]
[313332456,1707162645298,-199.867504,0.00027934,2]
[313332457,1707162645306,-171.001181,0.00027934,2]
[313332458,1707162645316,-656.36,0.00027945,2]
[313332459,1707162645325,-800.33,0.00027945,2]
[313332460,1707162645334,-1031.43,0.00027945,2]
[313332461,1707162645343,-5069.41,0.00027945,2]
[313332462,1707162645352,-1828.06,0.00027945,2]
[313332463,1707162645361,-500.0,0.00027945,2]
[313332464,1707162645370,-1039.64,0.00027945,2]
[313332465,1707162645379,-572.1,0.00027945,2]
[313332466,1707162645388,-1461.01,0.00027945,2]
[313332467,1707162645397,-965.35181657,0.00027967,2]
[313332468,1707162645406,-1680.78831392,0.00028,3]
[313332469,1707162645415,-72316.30506324,0.00028,2]
[313332470,1707162645424,-461.22827631,0.00028,3]
[313332471,1707162645434,-240.30451105,0.00028,2]
[313332472,1707162645443,-202.58014077,0.00028,2]
[313332473,1707162645453,-500.0,0.00028,2]
[313332474,1707162645463,-500.0,0.00028,2]
[313332475,1707162645475,-64937.6954854,0.00028,2]
[313332476,1707162645484,-313.34620064,0.00028,7]
[313332477,1707162645493,-53520.22789129,0.00028,2]
[313332478,1707162645502,-66033.86507033,0.00028,2]
[313332479,1707162645512,-200.0,0.00028,2]
[313332480,1707162645522,-1150599.42678416,0.00028,20]
[313332507,1707162646678,-1517.8313528,0.00024656,2]
[313332508,1707162646687,-500.0,0.00024657,2]
[313332509,1707162646697,-373.48,0.00024931,2]
[313332511,1707162646706,-4123.36,0.00025753,2]
[313332512,1707162646715,-4123.36,0.00026027,2]
[313332513,1707162646724,-4123.36,0.00026301,2]
[313332515,1707162646734,-4123.36,0.00026575,2]
[313332516,1707162646743,-4123.36,0.00026849,2]
[313332518,1707162646752,-4123.36,0.00027123,2]
[313332520,1707162646761,-4123.36,0.00027397,2]
[313332523,1707162646770,-4123.36,0.00027671,2]
[313332524,1707162646779,-4123.36,0.00027945,2]
[313332526,1707162646789,-133774.65738218,0.00028,20]
[313333027,1707162855717,155.01860223,0.000176,2]
[313333029,1707163036978,179.178266,0.00032876,120]
[313333030,1707163091804,172.3372286,0.0003,120]
[313333113,1707163831824,-155.02790502,0.00021899,2]
[313333116,1707163831834,-179.15995042,0.000219,2]
[313333119,1707163831844,-155.02790502,0.00021901,2]
[313333122,1707163831854,-699.25416012,0.00021902,2]
[313333125,1707163831863,-166.666666,0.00021918,2]
[313333128,1707163831872,-167.943569,0.0002224,2]
[313333130,1707163831881,-1262.55072275,0.00023,2]
[313333132,1707163831890,-169.55708347,0.00023116,2]
[313333134,1707163831901,-169.80479687,0.00023117,2]
[313333137,1707163831918,-11.31067542,0.00023172,2]
[313333140,1707163831936,-12103.0246383,0.00023172,2]
[313333149,1707163832017,-4479.68727357,0.00023172,2]
[313333174,1707163837887,-155.02790502,0.00021899,2]
[313333175,1707163837899,-231.12244103,0.00023073,2]
[313333176,1707163837911,-1990.20741561,0.00023172,2]
[313333177,1707163837995,-1399.45935306,0.00023172,2]
[313333191,1707163841141,-3085.03881698,0.00023172,2]
[313333192,1707163841196,-1000.0,0.00023172,2]
[313333193,1707163841210,-122.56030907,0.00023172,2]
[313333194,1707163841221,-9450.44487441,0.00023173,2]
[313333195,1707163841230,-3476.39061801,0.00023173,2]
[313333196,1707163841240,-166.666666,0.00024532,2]
[313333197,1707163841250,-500.0,0.00024657,2]
[313333198,1707163841259,-500.0,0.00024657,2]
[313333199,1707163841269,-500.0,0.00024657,2]
[313333200,1707163841278,-732.38,0.00024657,2]
[313333201,1707163841288,-4047.81,0.00024657,2]
[313333202,1707163841299,-500.0,0.0002493,2]
[313333203,1707163841308,-464.68436153,0.0002493,2]
[313333274,1707163845945,-35.31563847,0.0002493,2]
[313333275,1707163845956,-2139.40289828,0.0002493,2]
[313333281,1707163846001,-225.73710172,0.0002493,2]
[313333297,1707163846143,-879.52,0.0002493,2]
[313333299,1707163846156,-534.55,0.0002493,2]
[313333301,1707163846166,-500.0,0.00024931,2]
[313333303,1707163846175,-500.0,0.00024931,2]
[313333304,1707163846185,-500.0,0.00024931,2]
[313333306,1707163846194,-732.38,0.00024931,2]
[313333308,1707163846204,-4047.81,0.00024931,2]
[313333311,1707163846213,-777.24744248,0.00024971,2]
[313333313,1707163846222,-194.31186062,0.00024971,2]
[313333314,1707163846231,-2042.69504587,0.00025,2]
[313333317,1707163846241,-4397.71584247,0.00025,2]
[313333319,1707163846250,-2278.66541369,0.00025,2]
[313333437,1707164910772,150.0,0.00029372,120]
[313333564,1707165034697,-699.25416012,0.0002191,2]
[313333566,1707165034707,-179.15995042,0.00021911,2]
[313333568,1707165034718,-2820.97195235,0.00021918,2]
[313333570,1707165034728,-166.666666,0.00021918,2]
[313333572,1707165034739,-2577.03881402,0.00021919,2]
[313333737,1707165038135,-68.25680998,0.00021919,2]